Cogmind - Beta 14 @@@ ROGUE MODE // 2024.12.27 @ 15:10:32 Player: PTS Result: Destroyed by QK-CJG(R) with Subdweller Beam Cannon Performance ------------- Evolutions (0) 0 Regions Visited (2) 400 Robots Destroyed (8) 40 Value Destroyed (190) 190 Prototype IDs (0) 0 Alien Tech Used (0) 0 Bonus (0) 0 TOTAL SCORE: 630 Bonus ------- None Cogmind --------- Core Integrity 0/250 Matter 189/300 Energy 100/100 System Corruption 0% Temperature Cool (9) Movement Core (100) Ox1 Location -10/Subcaves Parts ------- > --- POWER (1) -------- (None) > --- PROPULSION (2) --- (None) > --- UTILITY (2) ------ Small Storage Unit > --- WEAPON (2) ------- (None) > --- INVENTORY (8) ---- Ion Engine Light Nuclear Core Small Laser Datajack Peak State ------------ > --- POWER ------------ Light Nuclear Core > --- PROPULSION ------- Aluminum Leg Aluminum Leg > --- UTILITY ---------- Small Storage Unit Structural Scanner > --- WEAPON ----------- EM Pulse Gun Small Laser > --- INVENTORY -------- Ion Engine Light Nuclear Core [Rating: 9] Favorites ----------- Power Light Nuclear Core Engine Ion Engine Power Core Light Nuclear Core Propulsion Aluminum Leg Leg Aluminum Leg Wheel Compact Wheel Utility Small Storage Unit Device Structural Scanner Storage Small Storage Unit Weapon EM Pulse Gun Energy Gun EM Pulse Gun Ballistic Gun Light Assault Rifle Special Weapon Mining Laser Special Melee Weapon Datajack Build | -11 -10 -10 ------- Run | Yrd Mat Sub Slots Evolved . | . . . Power . | . . . Propulsion . | . . . Utility . | . . . Weapon . | . . . Parts Attached 23 | 7 16 . Power 5 | 1 4 . Engine 2 | 1 1 . Core 3 | . 3 . Reactor . | . . . Propulsion 6 | 2 4 . Treads . | . . . Leg 4 | . 4 . Wheel 2 | 2 . . Hover . | . . . Flight . | . . . Utility 4 | 2 2 . Device 3 | 1 2 . Storage 1 | 1 . . Processor . | . . . Hackware . | . . . Protection . | . . . Artifact . | . . . Weapon 8 | 2 6 . Energy Gun 5 | 1 4 . Energy Cannon . | . . . Ballistic Gun 1 | 1 . . Ballistic Cannon . | . . . Launcher . | . . . Special Weapon 1 | . 1 . Impact Weapon . | . . . Slashing Weapon . | . . . Piercing Weapon . | . . . Special Melee Weapon 1 | . 1 . Unidentified Prototypes . | . . . Parts Lost 9 | . 3 6 Power 1 | . . 1 Propulsion 3 | . 1 2 Utility 2 | . 1 1 Weapon 3 | . 1 2 Highest Loss Streak 4 | . 2 4 To Critical Strikes 1 | . . 1 Average Slot Usage (%) 80 | . 80 80 Engine 2 | . 5 . Core 8 | . 6 11 Leg 17 | . 13 21 Wheel 5 | . 9 . Device 10 | . 8 13 Storage 14 | . 14 14 Energy Gun 12 | . 16 7 Ballistic Gun 2 | . 4 . Special Weapon 5 | . . 11 Peak Build Rating 9 | 7 9 9 Average Rating 6 | 5 6 7 On Entrance 5 | . 7 9 Naked Turns . | . . . Heaviest Build 14 | 13 14 14 Greatest Support 32 | 32 32 20 Greatest Overweight (x) 2 | . 2 1 Average Overweight (x) . | . . . Largest Inventory Capacity 8 | 8 8 8 Average Capacity 7 | 7 8 8 Most Carried 8 | 3 8 4 Average Carried 3 | . 3 4 Final Capacity 8 | 8 8 8 Final Carried 4 | 1 4 4 Class Distribution -------------------- 100% | Mutant Dominant Class ---------------- Mutant | -10/Materials Mutant | -10/Subcaves Resources | -11 -10 -10 ----------- Run | Yrd Mat Sub Matter Collected 305 | 126 179 . Remotely . | . . . Salvage Created 273 | 94 179 . Parts 14 | 8 6 . Haulers Intercepted . | . . . Recyclers Shooed . | . . . Parts Field Recycled . | . . . Retrieved Matter . | . . . Parts Self-Destructed 13 | . . 13 Prevented . | . . . Kills | -11 -10 -10 ------- Run | Yrd Mat Sub Combat Hostiles Destroyed 4 | . 4 . Guns 4 | . 4 . Classes Destroyed 2 | 1 1 . Tunneler 4 | 4 . . Grunt 4 | . 4 . Best Kill Streak 3 | 3 2 . Combat Bots Only 2 | . 2 . Max Kills in Single Turn 1 | 1 1 . Gunslinging . | . . . Exploded . | . . . Melee . | . . . Uniques/NPCs Destroyed . | . . . Combat | -11 -10 -10 -------- Run | Yrd Mat Sub Hostile Shots Fired 59 | . 33 26 Missed 11 | . 4 7 Damage Taken 894 | . 375 519 Core 265 | . 73 192 Absorbed by Shields . | . . . Core Remaining (%) 100 | 100 . . Volleys Fired 58 | 9 38 11 Largest 2 | 2 2 2 Hottest 140 | 60 100 140 Shots Fired 101 | 18 61 22 Gun 86 | 18 57 11 Cannon . | . . . Launcher . | . . . Special 15 | . 4 11 Kinetic 31 | 9 22 . Thermal 55 | 9 35 11 Explosive . | . . . Electromagnetic 15 | . 4 11 Robot Hit Streak 6 | 3 6 . Robot Miss Streak 8 | 2 8 . Penetration Max . | . . . Secondary Targets 1 | . 1 . Max Gunslinging Chain 1 | . 1 . Shots Hit Robots 45 | 9 36 . Core Hits 19 | 5 14 . Critical Kills . | . . . Critical Parts Destroyed . | . . . Critical Strikes . | . . . Melee Attacks 1 | . 1 . Impact . | . . . Slashing . | . . . Piercing . | . . . Sneak Attacks 1 | . 1 . Combat Hostiles . | . . . Follow-up Attacks . | . . . Damage Inflicted 467 | 87 380 . Guns 467 | 87 380 . Cannons . | . . . Explosions . | . . . Melee . | . . . Ramming . | . . . Kinetic 133 | 22 111 . Thermal 288 | 65 223 . Explosive . | . . . Electromagnetic 46 | . 46 . Impact . | . . . Slashing . | . . . Piercing . | . . . Highest Corruption . | . . . Average Corruption . | . . . Corruption Purged . | . . . Corruption Blocked . | . . . Overload Shots . | . . . Overflow Damage . | . . . Projectiles . | . . . Explosions . | . . . Melee . | . . . Knockbacks . | . . . Impact . | . . . Kinetic . | . . . Secondary . | . . . Self-Inflicted Damage . | . . . Shots . | . . . Rammed . | . . . Targets Rammed . | . . . Kicked . | . . . Crushed . | . . . Highest Temperature 165 | 40 165 . Average Temperature 57 | 23 64 . Received Heat Transfer 357 | . 213 144 Siege Activations . | . . . Robots Corrupted . | . . . Combat Hostiles . | . . . Parts Fried . | . . . Impact Corruptions . | . . . Robots Melted . | . . . Combat Hostiles . | . . . Parts Melted . | . . . Heat Transferred 650 | 150 500 . Parts Sabotaged . | . . . Parts Stolen . | . . . Parts Stripped . | . . . Power Chain Reactions . | . . . Alert | -11 -10 -10 ------- Run | Yrd Mat Sub Peak Influence 129 | 20 129 . Initial 13 | . 13 . Average 74 | 8 92 . Maximum Alert Level . | . . . Low Security (%) 100 | 100 100 . Level 1 . | . . . Level 2 . | . . . Level 3 . | . . . Level 4 . | . . . Level 5 . | . . . High Security . | . . . Max Security . | . . . Squads Dispatched . | . . . Investigation . | . . . Extermination . | . . . Reinforcement . | . . . Assault . | . . . Garrison . | . . . Intercept . | . . . Searches Triggered . | . . . Construction Impeded . | . . . Haulers Reinforced . | . . . Active Scanning Responses . | . . . Cargo Convoy Interrupts . | . . . Stealth | -11 -10 -10 --------- Run | Yrd Mat Sub Distress Signals 2 | . 2 . Communications Jammed . | . . . Distress Signals . | . . . Times Spotted 10 | . 8 2 Peak Tracking Total 4 | . 4 2 Tactical Retreats . | . . . Traps | -11 -10 -10 ------- Run | Yrd Mat Sub Traps Triggered 3 | . 3 . Indirectly . | . . . Trap Hack Attempts . | . . . Triggered . | . . . Disarmed . | . . . Reprogrammed . | . . . Reused . | . . . Traps Extracted . | . . . Installed . | . . . Triggered . | . . . Machines | -11 -10 -10 ---------- Run | Yrd Mat Sub Machines Disabled 1 | . 1 . Max in Single Turn 1 | . 1 . Machines Repaired . | . . . Machines Dismantled . | . . . Machines Sabotaged . | . . . Overloaded Fab Kills . | . . . Hacking | -11 -10 -10 --------- Run | Yrd Mat Sub Machines Accessed . | . . . Terminals . | . . . Fabricators . | . . . Repair Stations . | . . . Recycling Units . | . . . Scanalyzers . | . . . Garrison Access . | . . . Total Hacks . | . . . Successful . | . . . Failed . | . . . Catastrophic . | . . . Database Lockouts . | . . . Manual . | . . . Terminals . | . . . Fabricators . | . . . Repair Stations . | . . . Recycling Units . | . . . Scanalyzers . | . . . Garrison Access . | . . . Terminal Hacks . | . . . Fabricator Hacks . | . . . Repair Station Hacks . | . . . Recycling Unit Hacks . | . . . Scanalyzer . | . . . Garrison Access Hacks . | . . . Unauthorized Hacks . | . . . Terminals . | . . . Fabricators . | . . . Repair Stations . | . . . Recycling Units . | . . . Scanalyzers . | . . . Garrison Access . | . . . Data Cores Recovered . | . . . Used . | . . . Hacking Detections . | . . . Full Trace Events . | . . . Feedback Events . | . . . Feedback Blocked . | . . . Robot Schematics Acquired . | . . . Robots Built . | . . . Authchips . | . . . Time . | . . . Total Robot Build Rating . | . . . Part Schematics Acquired . | . . . Parts Built . | . . . Authchips . | . . . Time . | . . . Total Part Build Rating . | . . . Parts Repaired . | . . . Time . | . . . Parts Recycled . | . . . Recycled Matter . | . . . Retrieved Matter . | . . . Retrieved Components . | . . . Parts Scanalyzed . | . . . Part Schematics Acquired . | . . . Parts Damaged . | . . . Bothacking | -11 -10 -10 ------------ Run | Yrd Mat Sub Used RIF Installer . | . . . Robots Hacked . | . . . Non-combat . | . . . Combat . | . . . Robot Hacks Applied . | . . . Relay Couplers Released . | . . . Fabnet Peak Effective % . | . . . Robots Rewired . | . . . Allies Hacked . | . . . Hacks Repelled . | . . . Allies | -11 -10 -10 -------- Run | Yrd Mat Sub Total Allies . | . . . Largest Group . | . . . Highest-Rated Group . | . . . Highest-Rated Ally . | . . . Total Orders . | . . . Ally Attacks . | . . . Total Damage . | . . . Kills . | . . . Allies Corrupted . | . . . Allies Melted . | . . . Intel | -11 -10 -10 ------- Run | Yrd Mat Sub Robot Analysis Total . | . . . Derelict Logs Recovered 1 | . . 1 Drone Launches . | . . . Drone Recoveries . | . . . Exploration | -11 -10 -10 ------------- Run | Yrd Mat Sub Turns Passed 768 | 92 341 335 Spaces Moved 441 | 55 159 227 Core 86 | 6 23 57 Treads . | . . . Legs 266 | . 96 170 Wheels 89 | 49 40 . Hover . | . . . Flight . | . . . Fastest Speed 50 | 50 100 100 Average Speed 115 | 94 118 118 Slowest Speed 190 | 100 190 190 Overloaded Moves . | . . . Propulsion Burnouts . | . . . Robots Hopped . | . . . Cave-ins Triggered . | . . . Exploration Rate (%) 18 | 4 32 19 Regions Visited 2 Branch Regions 1 Pre-discovered Areas . | . . . Known Exits Taken . | . . . Unknown Exits Taken 2 | 1 1 . Scrap Searched . | . . . Spaces Dug 1 | . 1 . Terrain Destroyed 1 | . 1 . Melee . | . . . Projectile 1 | . 1 . AOE . | . . . Terrain Rammed . | . . . Walls Destroyed . | . . . Machines Disabled . | . . . Actions | -11 -10 -10 --------- Run | Yrd Mat Sub Total 569 | 78 243 248 Wait 25 | . 15 10 Move 439 | 54 158 227 Hop . | . . . Pick Up 21 | 8 13 . Fast Attach 1 | . 1 . Attach 16 | 7 9 . Detach . | . . . Swap 6 | . 6 . Drop 2 | . 2 . Fire 58 | 9 38 11 Melee 1 | . 1 . Ram . | . . . Kick . | . . . Crush . | . . . Escape Stasis . | . . . Rewire . | . . . Trap . | . . . Miscellaneous . | . . . Route ------- -11/Scrapyard -10/Materials (discovered 2 exits: [*Min] / [*Sub]) -10/Subcaves History --------- Turn | Location | Event 20 | -11/Scrapyard | Discovered new exit (range 16) 93 | -11/Scrapyard | Entered Materials 309 | -10/Materials | Build established: Mutant 400 | -10/Materials | Discovered new exit (range 9) 401 | -10/Materials | Discovered new exit (range 6) 434 | -10/Materials | Entered Subcaves 657 | -10/Subcaves | Learned Materials emergency access door positions 704 | -10/Subcaves | Core integrity fell below 50% 732 | -10/Subcaves | Lost 4 parts (1p2n1w) 760 | -10/Subcaves | Core integrity fell below 20% 769 | -10/Subcaves | Destroyed by QK-CJG(R) with Subdweller Beam Cannon Last Messages --------------- 00335_ U-05 Engineer lays Concrete. 00335_ Acquired EM Pulse Gun. 00336_ U-05 Engineer lays Concrete. 00356_ Destroyed Hover Unit. 00400_ EXIT=FOUND 00410_ Acquired Mining Laser. 00414_ Machine disabled. LOCATION=UNKNOWN AMBIENT_HEAT=-10 GOAL=ESCAPE 00458_ TQ-QQF(u) builds Twisted Machinery. 00610_ Critical hit (Destroy). 00610_ EM Pulse Gun destroyed. 00657_ Acquired derelict log, extracted data. Data stored: Materials emergency access points. 00677_ Aluminum Leg destroyed. 00695_ Mining Laser destroyed. 00701_ Lgt. Nuclear Core destroyed. 00701_ Aluminum Leg destroyed. 00759_ Structural Scanner destroyed. Map ----- +----------------------------------------------------+ | ??????????## ### ###?### # | | ??????????## #### ###### # | | ??????????## ####### ###### | | ??????????## " ########## ##### | | ??????????## " ########### # | | ?????????#### ""### ####### ### | | ?????????#### ""## ### ### ## ### | | ?????????## """## ## ################# | | ?????????## """##"" ### ################## | | ?????????### "" ## ### #####?############ | | ?????????### """## ## ###?## ## | | ??????????## ## ##?# ### | | ??????????## #### #####?## ### | | ??????????## ###### ######## ## | | ??????????### ###### #####?##### ## | | ??????????########## "" #####?#### ## | | ???????????#####?####"## ###??### ## | | ?????????????????### #### ##??### ### | | ???????????######## ##### ##??## ### | | ??????????######### ########?### ### | | ??????????## # # ############ ## | | ??????????###" ########### | | ??????????##" ""## # # ## ### | | ??????????### ######### ####### | | ??????????### ## # R ########### | | ??????????## " ## @ ####???##### | | ??????????##""""""""" ###????????### | | ??????????####""""" ##### ###?????????## | | ??????????######"" ###### ##???????????? | | ????????????############# ### #####???????????? | | ??????????????########## ##########???????????? | | ?????????????????????## ########??????????????? | | ?????????????????????#########???????????????????? | | ?????????????????????########????????????????????? | | ?????????????????????????????????????????????????? | | ?????????????????????????????????????????????????? | | ?????????????????????????????????????????????????? | | ?????????????????????????????????????????????????? | | ?????????????????????????????????????????????????? | | ?????????????????????????????????????????????????? | | ?????????????????????????????????????????????????? | | ?????????????????????????????????????????????????? | | ?????????????????????????????????????????????????? | | ?????????????????????????????????????????????????? | | ?????????????????????????????????????????????????? | | ?????????????????????????????????????????????????? | | ?????????????????????????????????????????????????? | | ?????????????????????????????????????????????????? | | | | | +----------------------------------------------------+ Best States ------------- Heat Dissipation 25 Energy Generation 14 Energy Capacity 250 Matter Stores 299 Matter Capacity 300 Sight Range 16 Terrain Scan Density 10 Evasion (%) 55 Item Schematics ----------------- None Robot Schematics ------------------ None Fabricated ------------ Nothing Alien Tech Used ----------------- None Achievements -------------- None Challenges ------------ None Game ------ Seed ChargeThrowingRailgun Manual? 0 Play Time 00:07:51 Cumulative 15.1 hours Start 2024.12.27 @ 14:49:52 End 2024.12.27 @ 15:10:32 Sessions 1 Manual Loads 0 Difficulty Rogue Special Mode None Game No. 26 Rogue 26 Adventurer 0 Explorer 0 Win Type - Total 0 Types 0/0/0/0/0/0/0/0/0 Lore% 12 Gallery% 23 Achievement% 22 Wizard Run 0 Options --------- Layout 1 ASCII 0 Keyboard 0 Movement Mouse Keybinds 0 Fullscreen 1 Font 24/Smallcaps Map View 50x35 Zoom Use 0% Tactical HUD 1 Map Filters NONE Filters NONE Steam 1 RUN: c4ddb516-d5ac-412c-9572-8b648dd095f6